bitfinex/quotes_SOLUSD_20260311
["timestamp","ask_amount","ask_price","bid_price","bid_amount"]
[1773262129334,1.13900203,87.398,87.369,1.34718965]
[1773262129538,11.44204034,87.397,87.371,1.34718965]
[1773262130127,11.44154407,87.401,87.371,1.34718965]
[1773262130527,2.93034026,87.41,87.371,1.34718965]
[1773262130829,1.40532768,87.408,87.371,1.34718965]
[1773262131032,1.40532768,87.399,87.366,4.24430693]
[1773262131237,1.40532768,87.399,87.367,12.77027623]
[1773262131438,1.40532768,87.399,87.368,1.32430693]
[1773262132028,1.40532768,87.397,87.368,1.32430693]
[1773262132835,1.40532768,87.397,87.366,2.92]
[1773262133526,40.04668298,87.398,87.366,2.92]
[1773262133527,1.40532768,87.389,87.366,2.92]
[1773262133727,2.93034026,87.39,87.366,2.92]
[1773262134535,2.93034026,87.4,87.367,1.32430693]
[1773262134936,2.93034026,87.4,87.368,1.32430693]
[1773262135246,2.93034026,87.41,87.368,1.32430693]
[1773262135538,40.03202561,87.43,87.371,1.32430693]
[1773262135724,0.54325917,87.409,87.371,1.32430693]
[1773262135921,0.54325917,87.407,87.373,1.32430693]
[1773262138648,11.98431539,87.406,87.375,1.32430693]
[1773262138846,11.44086218,87.406,87.375,1.32430693]
[1773262140053,0.54353707,87.404,87.375,1.32430693]
[1773262141552,1.40532768,87.405,87.366,2.92]
[1773262141553,1.40532768,87.405,87.377,1.32430693]
[1773262141725,0.54357828,87.426,87.382,1.32430693]
[1773262142945,11.43870374,87.423,87.384,1.32430693]
[1773262143729,11.43870374,87.423,87.391,1.32430693]
[1773262144748,0.54369909,87.422,87.391,1.32430693]
[1773262144955,57.17514012,87.451,87.401,1.32430693]
[1773262144956,0.54369909,87.439,87.401,1.32430693]
[1773262145134,0.54373844,87.438,87.401,1.32430693]
[1773262146453,0.54377734,87.419,87.396,2.92]
[1773262146936,0.54377734,87.417,87.396,2.92]
[1773262148948,0.5438538,87.415,87.389,1.32430693]
[1773262149657,1.40532768,87.409,87.376,2.92]
[1773262149847,1.40532768,87.409,87.377,11.44465934]
[1773262151653,1.40532768,87.407,87.38,1.32430693]
[1773262153544,1.40532768,87.405,87.38,1.32430693]
[1773262156648,1.40532768,87.411,87.382,1.32430693]
[1773262156854,11.44033863,87.41,87.382,1.32430693]
[1773262157042,12.84566631,87.41,87.382,1.32430693]
[1773262159543,12.84566631,87.41,87.384,1.32430693]
[1773262162245,1.33200281,87.409,87.385,11.4436116]
[1773262162978,1.33200281,87.409,87.386,1.39323045]
[1773262163765,1.33200281,87.409,87.382,2.92]
[1773262164144,1.33200281,87.407,87.383,1.39323045]
[1773262165472,1.33200281,87.405,87.383,1.39323045]
[1773262168467,11.44112397,87.404,87.383,1.39323045]
[1773262168673,1.33200281,87.403,87.383,1.39323045]
[1773262171467,11.44138578,87.402,87.383,1.39323045]
[1773262171652,1.33200281,87.401,87.383,1.39323045]
[1773262172658,1.33200281,87.401,87.384,11.44374256]
[1773262173059,1.33200281,87.401,87.384,12.83697301]
[1773262173275,11.43929167,87.418,87.385,1.39323045]
[1773262173451,1.33200281,87.426,87.391,1.39323045]
[1773262173654,28.5950151,87.428,87.393,1.39323045]
[1773262173655,1.33200281,87.424,87.393,1.39323045]
[1773262176272,11.43863742,87.423,87.394,11.44243311]
[1773262176474,1.33200281,87.422,87.395,1.39323045]
[1773262177660,1.33200281,87.42,87.395,1.39323045]
[1773262179162,1.33200281,87.42,87.397,1.39323045]
[1773262180558,1.28153452,87.418,87.397,1.39323045]
[1773262181680,1.28153452,87.416,87.391,2.92]
[1773262181971,1.28153452,87.409,87.376,1.30451729]
[1773262183668,11.4406004,87.408,87.377,11.44465934]
[1773262183868,1.28153452,87.407,87.378,1.30451729]
[1773262189486,1.28153452,87.405,87.378,1.30451729]
[1773262190082,1.30663737,87.399,87.364,1.4038184]
[1773262190381,1.30663737,87.389,87.364,1.4038184]
[1773262190590,1.30663737,87.389,87.366,1.4038184]
[1773262193002,11.44177851,87.399,87.371,1.4038184]
[1773262195100,1.30663737,87.403,87.373,1.4038184]
[1773262198586,1.30663737,87.401,87.374,11.4450523]
[1773262198780,1.30663737,87.401,87.375,1.4038184]
[1773262199790,1.30663737,87.399,87.375,1.4038184]
[1773262200513,1.30663737,87.389,87.366,2.92]
[1773262200880,40.04485023,87.402,87.366,2.92]
[1773262200881,1.30663737,87.379,87.366,2.92]
[1773262201472,1.30663737,87.379,87.352,11.44786191]
[1773262202090,1.30663737,87.379,87.352,12.85168031]
[1773262202288,1.30663737,87.379,87.353,1.4038184]
[1773262203288,1.30663737,87.394,87.356,1.4038184]
[1773262205479,2.93249902,87.4,87.361,1.4038184]
[1773262205680,1.30663737,87.414,87.371,1.4038184]
[1773262206388,2.93249902,87.41,87.371,1.4038184]
[1773262206585,1.30663737,87.409,87.371,1.4038184]
[1773262207099,1.30663737,87.399,87.371,1.4038184]
[1773262207278,1.30663737,87.399,87.358,1.4038184]
[1773262210506,1.30663737,87.389,87.36,1.4038184]
[1773262212905,1.30663737,87.387,87.362,1.4038184]
[1773262215009,57.19580411,87.419,87.371,1.4038184]
[1773262215010,11.44125487,87.403,87.371,1.4038184]
[1773262215209,28.60200138,87.407,87.381,1.4038184]
[1773262215210,11.44079565,87.407,87.381,1.4038184]
[1773262215531,1.30663737,87.411,87.381,1.4038184]
[1773262216798,1.30663737,87.41,87.383,1.4038184]
[1773262219120,1.30663737,87.408,87.385,1.4038184]
[1773262221117,1.39425023,87.406,87.385,1.4038184]
[1773262224016,12.8352433,87.405,87.385,1.4038184]
[1773262224215,1.39425023,87.404,87.385,1.4038184]
[1773262225005,11.44021685,87.411,87.387,1.40594827]
[1773262225922,12.83446708,87.411,87.387,1.40594827]
[1773262226700,12.83446708,87.411,87.389,1.40594827]
[1773262226902,1.39425023,87.41,87.389,1.40594827]
[1773262231023,1.39425023,87.408,87.384,1.40594827]
[1773262231322,1.39425023,87.408,87.373,11.44518329]
[1773262231523,1.39425023,87.408,87.374,1.40594827]
[1773262232909,1.39425023,87.416,87.381,1.40594827]
[1773262233112,1.39425023,87.414,87.383,1.40594827]
[1773262237126,11.43968426,87.415,87.382,40.05401569]
[1773262237127,29.99206213,87.42,87.385,1.40594827]
[1773262237426,1.39425023,87.428,87.385,1.40594827]
[1773262237725,1.39425023,87.427,87.385,1.40594827]
[1773262238338,1.39425023,87.427,87.391,1.40594827]
[1773262241027,11.43824491,87.426,87.392,11.44269498]
[1773262241232,12.74653638,87.426,87.393,1.41736233]
[1773262241534,1.30829147,87.425,87.393,1.41736233]
[1773262243517,11.43850658,87.424,87.395,1.41736233]
[1773262244015,12.74679805,87.424,87.395,1.41736233]
[1773262244525,1.30829147,87.423,87.395,1.41736233]
[1773262245730,1.30829147,87.421,87.397,1.41736233]
[1773262245944,12.74660484,87.426,87.397,1.41736233]
[1773262246241,1.30829147,87.425,87.397,1.41736233]
[1773262247341,1.30829147,87.436,87.401,1.41736233]
[1773262248037,11.43706753,87.435,87.401,1.41736233]
[1773262248243,11.43706753,87.435,87.389,2.92]
[1773262248244,1.30829147,87.434,87.391,1.41736233]
[1773262249545,1.30829147,87.432,87.392,1.41736233]
[1773262252541,1.30075811,87.43,87.394,1.33460129]
[1773262253060,1.30075811,87.429,87.394,1.33460129]
[1773262255526,1.30075811,87.427,87.394,1.33460129]
[1773262256623,40.03385719,87.426,87.394,1.33460129]
[1773262256824,1.30075811,87.425,87.394,1.33460129]
[1773262258648,1.30075811,87.423,87.394,1.33460129]
[1773262259444,11.43850658,87.424,87.396,1.33460129]
[1773262259646,11.43850658,87.424,87.401,1.33460129]
[1773262260040,11.43808277,87.428,87.401,1.33460129]
[1773262260345,12.73884088,87.428,87.401,1.33460129]
[1773262260528,12.73884088,87.428,87.402,11.44138578]
[1773262260727,12.73884088,87.428,87.403,1.33460129]
[1773262261547,1.30075811,87.427,87.403,1.33460129]
[1773262263451,11.43824491,87.426,87.405,1.33460129]
[1773262263650,12.73900302,87.426,87.405,1.33460129]
[1773262264151,1.30075811,87.425,87.405,1.33460129]
[1773262264445,1.30075811,87.425,87.392,2.92]
[1773262265157,1.30075811,87.419,87.376,11.44470392]
[1773262266056,1.30075811,87.417,87.371,40.05905849]
[1773262266440,1.30075811,87.417,87.372,1.33460129]
[1773262269653,1.30075811,87.415,87.374,1.33460129]
[1773262271744,1.30075811,87.413,87.376,1.33460129]
[1773262273660,1.30075811,87.411,87.378,1.33460129]
[1773262276666,1.30075811,87.409,87.38,1.33460129]
[1773262279870,1.30075811,87.407,87.382,1.33460129]
[1773262280654,11.44086218,87.406,87.383,11.44387352]
[1773262280851,1.38865756,87.405,87.384,1.38936932]
[1773262282473,1.38865756,87.399,87.37,4.30936932]
[1773262282674,1.38865756,87.397,87.37,2.92]
[1773262282970,1.38865756,87.397,87.351,1.38936932]
[1773262283174,1.38865756,87.397,87.351,40.06823046]
[1773262283359,1.38865756,87.397,87.352,1.38936932]
[1773262285575,40.04759942,87.396,87.353,11.44780373]
[1773262285873,1.38865756,87.395,87.354,1.38936932]
[1773262288780,1.38865756,87.393,87.356,1.38936932]
[1773262291679,1.38865756,87.391,87.358,1.38936932]
[1773262292482,11.4406004,87.408,87.361,1.38936932]
[1773262293866,40.0421014,87.408,87.363,1.38936932]
[1773262294578,1.38865756,87.407,87.363,1.38936932]
[1773262294881,1.38865756,87.399,87.363,1.38936932]
[1773262297480,1.38865756,87.397,87.365,1.38936932]
[1773262299590,11.44217126,87.396,87.366,11.44610031]
[1773262299773,1.38865756,87.395,87.367,1.38936932]
[1773262300689,11.44243311,87.394,87.368,11.44583829]
[1773262300890,12.75629866,87.394,87.369,1.33142929]
[1773262301388,1.31386555,87.393,87.369,1.33142929]
[1773262303088,11.44269498,87.392,87.37,11.44557628]
[1773262303272,11.44269498,87.392,87.371,1.33142929]
[1773262304787,11.44204034,87.397,87.373,1.33142929]
[1773262307797,11.44204034,87.397,87.374,11.4450523]
[1773262308097,11.44204034,87.397,87.375,1.33142929]
[1773262309196,12.75590589,87.397,87.375,1.33142929]
[1773262309501,1.31386555,87.396,87.375,1.33142929]
[1773262310602,1.3971582,87.394,87.375,1.33142929]
[1773262312808,1.3971582,87.392,87.375,1.33142929]
[1773262316495,1.3971582,87.397,87.377,1.31271235]
[1773262317701,1.3971582,87.397,87.373,1.31271235]
[1773262317908,1.3971582,87.395,87.373,1.31271235]
[1773262320510,1.3971582,87.393,87.373,1.31271235]
[1773262321404,1.3971582,87.393,87.365,11.44611575]
[1773262321606,1.3971582,87.389,87.35,1.31271235]
[1773262321800,1.3971582,87.389,87.351,1.31271235]
[1773262322717,1.3971582,87.387,87.353,1.31271235]
[1773262324617,1.3971582,87.379,87.353,1.31271235]
[1773262324910,1.3971582,87.377,87.353,1.31271235]
[1773262327803,1.3971582,87.375,87.353,1.31271235]
[1773262329919,1.3971582,87.373,87.353,1.31271235]
[1773262331015,1.3971582,87.373,87.341,1.31271235]
[1773262331315,1.3971582,87.369,87.341,1.31271235]
[1773262331696,1.3971582,87.369,87.34,0.2]
[1773262332100,40.06043402,87.368,87.34,0.2]
[1773262332316,1.3971582,87.367,87.34,0.2]
[1773262333112,1.3971582,87.367,87.341,1.31271235]
[1773262333298,1.3971582,87.367,87.341,11.44937658]
[1773262333495,1.3971582,87.367,87.34,3.134426]
[1773262333496,1.3971582,87.367,87.342,1.31271235]
[1773262334820,1.3971582,87.365,87.342,1.31271235]
[1773262338719,1.3971582,87.363,87.342,1.31271235]
[1773262339924,1.3081131,87.359,87.323,1.40288137]
[1773262340621,102.8,87.385,87.323,1.40288137]
[1773262340622,11.44619324,87.366,87.331,1.40288137]
[1773262340816,1.3081131,87.365,87.331,1.40288137]
[1773262341922,1.3081131,87.363,87.333,1.40288137]
[1773262345524,1.3081131,87.361,87.335,1.40288137]
[1773262346021,11.44621159,87.366,87.335,1.40288137]
[1773262346211,1.3081131,87.365,87.335,1.40288137]
[1773262348931,1.3081131,87.365,87.337,1.40288137]
[1773262349628,1.3081131,87.363,87.337,1.40288137]
[1773262351134,1.3081131,87.361,87.337,1.40288137]
[1773262351336,11.44662439,87.362,87.324,1.40288137]
[1773262351337,1.3081131,87.359,87.324,1.40288137]
[1773262353228,1.3081131,87.357,87.324,1.40288137]
[1773262356227,1.3081131,87.349,87.324,1.40288137]
[1773262356436,1.3081131,87.349,87.322,1.40288137]
[1773262357622,1.3081131,87.347,87.322,1.40288137]
[1773262358538,1.3081131,87.347,87.317,1.40288137]
[1773262359624,1.3081131,87.345,87.317,1.40288137]
[1773262360336,1.3081131,87.345,87.313,2.92]
[1773262365939,1.39473671,87.343,87.313,2.92]
[1773262366138,1.39473671,87.339,87.3,1.29442021]
[1773262366331,1.39473671,87.329,87.3,1.29442021]
[1773262367043,1.39473671,87.341,87.301,1.29442021]
[1773262367244,1.39473671,87.341,87.302,1.29442021]
[1773262367924,1.39473671,87.339,87.304,1.29442021]
[1773262370445,1.3110254,87.337,87.306,1.33793802]
[1773262377838,1.3110254,87.335,87.308,1.33793802]
[1773262381259,12.76013981,87.343,87.31,4.27634865]
[1773262381565,1.3110254,87.346,87.321,1.33793802]
[1773262381743,11.44869006,87.347,87.321,1.33793802]
[1773262382146,11.44869006,87.347,87.305,11.45402698]
[1773262382147,1.3110254,87.339,87.305,11.45402698]
[1773262382759,1.3110254,87.329,87.287,28.64097769]
[1773262382945,1.3110254,87.329,87.289,2.92]
[1773262383651,1.3110254,87.327,87.293,11.45557076]
[1773262383953,1.3110254,87.319,87.289,2.92]
[1773262384157,1.3110254,87.319,87.291,1.33793802]
[1773262384458,1.3110254,87.309,87.286,1.33793802]
[1773262384657,2.93841063,87.3,87.28,0.2]
[1773262384843,1.3110254,87.299,87.28,0.2]
[1773262385360,1.3110254,87.322,87.291,1.33793802]
[1773262386356,1.3110254,87.32,87.293,1.33793802]
[1773262386557,1.3110254,87.333,87.294,1.33793802]
[1773262386850,1.3110254,87.333,87.311,1.33793802]
[1773262388253,1.3110254,87.327,87.295,4.25793802]
[1773262390064,1.3110254,87.327,87.295,1.33793802]
[1773262390567,1.3110254,87.325,87.295,1.33793802]
[1773262391367,1.3110254,87.319,87.28,1.34573785]
[1773262391567,1.3110254,87.299,87.28,0.2]
[1773262392166,1.3110254,87.299,87.27,0.2]
[1773262392768,11.45501615,87.298,87.27,0.2]
[1773262392979,1.3110254,87.297,87.27,0.2]
[1773262393977,1.3110254,87.289,87.27,0.2]
[1773262395267,1.3110254,87.287,87.27,0.2]
[1773262396365,1.3110254,87.285,87.26,0.2]
[1773262397359,11.45685348,87.284,87.26,0.2]
[1773262397673,1.3110254,87.283,87.26,0.2]
[1773262398068,1.3110254,87.283,87.261,1.33793802]
[1773262398275,1.3110254,87.283,87.261,12.79781127]
[1773262398774,1.3110254,87.283,87.261,1.33793802]
[1773262398970,1.3110254,87.283,87.26,0.2]
[1773262399453,1.3110254,87.281,87.26,0.2]
[1773262400061,1.33379956,87.294,87.262,1.29931114]
[1773262401664,1.33379956,87.292,87.264,1.29931114]
[1773262403976,28.63397214,87.309,87.271,1.29931114]
[1773262403977,1.33379956,87.297,87.271,1.29931114]
[1773262404877,1.33379956,87.279,87.26,1e-08]
[1773262405082,1.33379956,87.279,87.241,12.76174406]
[1773262406277,1.33379956,87.277,87.243,11.46220073]
[1773262407379,1.33379956,87.277,87.24,0.2]
[1773262407583,1.33379956,87.269,87.24,0.2]
[1773262408264,2.93841063,87.27,87.24,0.2]
[1773262408265,1.33379956,87.267,87.24,0.2]
[1773262408466,40.10633908,87.268,87.24,0.2]
[1773262408467,1.33379956,87.259,87.24,0.2]
[1773262408878,1.33379956,87.259,87.23,0.2]
[1773262410460,1.33379956,87.257,87.23,0.2]
[1773262411783,11.46052993,87.256,87.23,0.2]
[1773262411980,1.33379956,87.255,87.23,0.2]
[1773262412188,1.33379956,87.249,87.23,0.2]
[1773262412681,1.33379956,87.249,87.214,1.29931114]
[1773262412986,1.33379956,87.239,87.214,1.29931114]
[1773262413874,1.33379956,87.237,87.215,11.46588664]
[1773262414264,1.33379956,87.237,87.21,0.2]
[1773262414462,1.33379956,87.229,87.21,0.2]
[1773262414686,2.93841063,87.23,87.2,0.2]
[1773262415187,45.84225586,87.256,87.2,0.2]
[1773262415188,11.46092623,87.253,87.221,1.29931114]
[1773262415768,11.46276321,87.239,87.201,1.29931114]
[1773262415971,2.93841063,87.23,87.201,1.29931114]
[1773262416668,1.33379956,87.229,87.201,1.29931114]
[1773262416882,1.33379956,87.229,87.201,12.76706953]
[1773262417981,11.46420874,87.228,87.201,12.76706953]
[1773262418194,1.33379956,87.227,87.201,12.76706953]
[1773262418568,11.46420874,87.228,87.177,1.29931114]
[1773262418569,1.33379956,87.209,87.177,1.29931114]
[1773262418763,1.33379956,87.209,87.181,1.29931114]
[1773262419185,1.33379956,87.216,87.182,1.29931114]
[1773262420878,1.36548705,87.223,87.184,1.35561353]
[1773262421188,1.36548705,87.209,87.18,0.2]
[1773262421576,1.36548705,87.209,87.181,1.35561353]
[1773262421887,2.94758351,87.21,87.181,1.35561353]
[1773262422183,1.36548705,87.209,87.181,1.35561353]
[1773262422393,1.36548705,87.209,87.182,1.35561353]
[1773262422573,1.36548705,87.219,87.182,1.35561353]
[1773262424092,7.11081884,87.233,87.21,2.94758351]
[1773262424274,7.11081884,87.233,87.18,0.2]
[1773262424275,1.36548705,87.246,87.222,1.35561353]
[1773262424590,1.36548705,87.253,87.222,1.35561353]
[1773262425468,1.36548705,87.253,87.22,2.94758351]
[1773262425469,1.36548705,87.276,87.241,1.35561353]
[1773262425671,1.36548705,87.276,87.218,3.69383402]
[1773262425672,12.82347496,87.276,87.251,1.35561353]
[1773262426078,8.49513714,87.275,87.251,1.35561353]
[1773262426281,11.45816623,87.274,87.251,1.35561353]
[1773262427782,11.45816623,87.274,87.252,11.46105533]
[1773262427985,11.45816623,87.274,87.252,12.81666886]
[1773262428795,11.45816623,87.274,87.253,1.35561353]
[1773262429669,11.45816623,87.274,87.218,4.84038633]
[1773262429670,1.36548705,87.269,87.219,1.35561353]
[1773262429874,40.10358181,87.274,87.221,1.32958133]
[1773262429875,1.36548705,87.259,87.221,1.32958133]
[1773262432793,11.46026725,87.258,87.222,11.46499736]
[1773262433097,1.39555534,87.257,87.223,1.32958133]
[1773262434995,1.39555534,87.255,87.225,1.32958133]
[1773262435300,1.39555534,87.249,87.225,1.32958133]
[1773262435602,1.39555534,87.249,87.218,12.79502755]
[1773262436492,1.39555534,87.247,87.218,12.79502755]
[1773262436890,1.39555534,87.247,87.219,1.32958133]
[1773262437795,28.65132483,87.256,87.218,11.46544622]
[1773262437796,1.39555534,87.285,87.241,1.32958133]
[1773262438099,1.39555534,87.273,87.251,1.32958133]
[1773262438304,1.39555534,87.273,87.241,1.32958133]
[1773262438801,1.39555534,87.271,87.243,1.32958133]
[1773262440300,1.39555534,87.271,87.243,0.92142833]
[1773262441410,1.39555534,87.271,87.244,11.46210627]
[1773262442499,1.39555534,87.271,87.246,12.79142485]
[1773262442708,1.39555534,87.269,87.246,12.79142485]
[1773262442911,1.39555534,87.269,87.232,1.32958133]
[1773262447034,1.39555534,87.267,87.234,1.32958133]
[1773262448325,12.85385286,87.273,87.25,2.94758351]
[1773262448543,1.39555534,87.272,87.25,2.94758351]
[1773262448914,1.39555534,87.272,87.251,11.46118669]
[1773262449524,1.39555534,87.259,87.217,1.32958133]
[1773262449728,1.39555534,87.257,87.222,1.32958133]
[1773262449925,1.39555534,87.263,87.231,1.32958133]
[1773262451135,1.39555534,87.261,87.233,1.32958133]
[1773262453449,1.14632888,87.288,87.251,1.32958133]
[1773262453633,1.14632888,87.288,87.261,1.32958133]
[1773262453634,1.39555534,87.288,87.261,1.32958133]
[1773262455757,1.39555534,87.288,87.262,11.45974192]
[1773262456047,1.39555534,87.288,87.262,12.78932325]
[1773262456651,1.39555534,87.288,87.263,1.32958133]
[1773262456845,1.39555534,87.288,87.264,11.45947928]
[1773262458256,1.39555534,87.288,87.265,1.32958133]
[1773262458443,1.39555534,87.288,87.27,4.27716484]
[1773262459738,1.39555534,87.288,87.271,11.45856011]
[1773262461053,2.94758351,87.31,87.254,28.65171897]
[1773262461054,1.38838822,87.31,87.281,1.29625707]
[1773262461554,2.94758351,87.32,87.261,41.2555437]
[1773262461555,1.38838822,87.327,87.296,1.29625707]
[1773262461934,2.92,87.333,87.296,1.29625707]
[1773262461935,2.92,87.333,87.3,2.94758351]
[1773262462135,11.45040301,87.334,87.311,1.29625707]
[1773262463053,11.44950767,87.34,87.311,1.29625707]
[1773262463238,12.83789589,87.34,87.311,1.29625707]
[1773262463758,1.38838822,87.339,87.311,1.29625707]
[1773262464539,1.38838822,87.339,87.308,11.45365875]
[1773262466777,1.38838822,87.337,87.304,11.4542289]
[1773262469366,1.38838822,87.335,87.304,11.4542289]
[1773262469743,1.38838822,87.329,87.304,11.4542289]
[1773262470345,1.38838822,87.329,87.292,1.29625707]
[1773262470545,1.38838822,87.319,87.287,1.29625707]
[1773262471563,1.38838822,87.317,87.288,12.75258554]
[1773262472172,1.14632888,87.324,87.3,2.94758351]
[1773262472359,1.38838822,87.336,87.301,1.29625707]
[1773262472671,1.38838822,87.329,87.301,1.29625707]
[1773262473771,1.38838822,87.327,87.301,1.29625707]
[1773262474766,1.38838822,87.327,87.299,11.45478822]
[1773262474974,11.45108098,87.328,87.295,11.45534553]
[1773262474975,1.38838822,87.319,87.295,11.45534553]
[1773262475852,1.38838822,87.317,87.295,11.45534553]
[1773262478252,1.38838822,87.328,87.301,1.29625707]
[1773262478457,1.38838822,87.327,87.301,1.29625707]
[1773262479964,1.38838822,87.327,87.29,2.94758351]
[1773262480273,1.38838822,87.327,87.291,1.29625707]
[1773262480457,1.41371007,87.325,87.293,1.41214057]
[1773262481570,1.41371007,87.323,87.295,1.41214057]
[1773262483154,1.41371007,87.323,87.284,1.41214057]
[1773262483376,1.41371007,87.319,87.284,1.41214057]
[1773262483572,11.4523924,87.318,87.285,11.45672223]
[1773262483769,38.77242744,87.329,87.286,1.41214057]
[1773262484073,38.77242744,87.329,87.285,11.45672223]
[1773262484074,1.41371007,87.334,87.301,1.41214057]
[1773262485976,1.41371007,87.334,87.303,1.41214057]
[1773262486360,1.41371007,87.319,87.289,1.41214057]
[1773262486561,1.41371007,87.319,87.292,1.41214057]
[1773262487263,1.41371007,87.319,87.284,1.41214057]
[1773262487481,1.41371007,87.309,87.284,12.86894763]
[1773262488193,1.41371007,87.308,87.284,12.86894763]
[1773262488387,1.41371007,87.299,87.276,1.41214057]
[1773262489466,1.41371007,87.299,87.27,2.93993784]
[1773262489467,1.41371007,87.312,87.278,1.41214057]
[1773262489669,1.41371007,87.309,87.278,1.41214057]
[1773262489872,1.41794753,87.335,87.301,1.31442745]
[1773262490066,1.41794753,87.335,87.311,1.31442745]
[1773262491086,1.41794753,87.329,87.301,1.31442745]
[1773262491684,1.41794753,87.329,87.303,1.31442745]
[1773262493785,1.41794753,87.329,87.304,11.4542289]
[1773262494384,1.41794753,87.335,87.31,2.93993784]
[1773262494581,1.41794753,87.335,87.306,1.31442745]
[1773262495474,1.41794753,87.334,87.307,11.45383531]
[1773262495674,1.41794753,87.334,87.307,12.76826276]
[1773262495878,1.41794753,87.334,87.308,1.31442745]
[1773262497282,7.21927166,87.336,87.32,1.31442745]
[1773262498279,7.21927166,87.336,87.32,12.76647666]
[1773262499589,7.21927166,87.336,87.32,1.31442745]
[1773262500093,1.41794753,87.335,87.307,28.63458829]
[1773262500493,1.41794753,87.334,87.301,11.45462251]
[1773262501189,1.41794753,87.329,87.301,11.45462251]
[1773262501689,1.41794753,87.329,87.295,28.63846367]
[1773262502075,1.41794753,87.329,87.296,1.15651681]
[1773262502392,1.41794753,87.327,87.296,1.15651681]
[1773262504094,1.41794753,87.325,87.291,11.45593474]
[1773262504396,1.41794753,87.309,87.279,11.45750982]
[1773262504792,1.41794753,87.309,87.279,12.61410063]
[1773262504995,1.41794753,87.309,87.28,1.15659081]
[1773262506595,1.41794753,87.307,87.281,11.45724728]
[1773262507094,1.41794753,87.307,87.276,11.45781905]
[1773262507290,1.41794753,87.299,87.27,11.45859323]
[1773262507495,1.41794753,87.289,87.27,11.45859323]
[1773262509000,1.41794753,87.289,87.263,12.61567507]
[1773262509703,1.41794753,87.289,87.249,1.15593665]
[1773262509891,1.41794753,87.279,87.249,1.15593665]
[1773262510499,1.41794753,87.279,87.253,1.15581029]
[1773262510693,1.41794753,87.286,87.253,1.15581029]
[1773262511794,1.41794753,87.284,87.255,1.15568538]
[1773262513999,1.41794753,87.279,87.247,1.15543985]
[1773262516402,1.41794753,87.279,87.249,1.15508203]
[1773262516616,1.41794753,87.289,87.251,1.15508203]
[1773262517091,4.35788537,87.28,87.251,1.15508203]
[1773262517295,1.41794753,87.28,87.251,1.15508203]
[1773262518914,14.3960856,87.29,87.253,1.31442745]
[1773262521012,1.31058793,87.289,87.255,1.31076655]
[1773262521212,1.31058793,87.287,87.255,1.31076655]
[1773262522605,2.93993784,87.28,87.255,1.31076655]
[1773262522807,1.31058793,87.282,87.255,1.31076655]
[1773262523007,1.31058793,87.282,87.257,1.31076655]
[1773262525918,1.31058793,87.282,87.258,11.46026725]
[1773262526114,2.93993784,87.27,87.246,1.31076655]
[1773262526298,1.31058793,87.269,87.246,1.31076655]
[1773262529916,1.31058793,87.269,87.244,11.46210627]
[1773262529917,2.93993784,87.26,87.245,1.31076655]
[1773262530312,4.25052577,87.26,87.244,11.46210627]
[1773262530710,1.31058793,87.26,87.244,11.46210627]
[1773262531504,1.31058793,87.26,87.244,12.77287282]
[1773262531705,12.76989479,87.266,87.245,1.31076655]
[1773262531906,1.31058793,87.265,87.245,1.31076655]
[1773262532425,11.45930686,87.266,87.245,1.31076655]
[1773262532622,11.45930686,87.266,87.232,1.31076655]
[1773262532623,1.31058793,87.259,87.232,1.31076655]
[1773262532918,1.31058793,87.259,87.223,1.31076655]
[1773262533522,1.31058793,87.259,87.22,28.66291707]
[1773262533523,1.31058793,87.257,87.225,1.31076655]
[1773262537723,1.31058793,87.255,87.227,1.31076655]
[1773262538106,2.93993784,87.25,87.227,1.31076655]
[1773262538324,1.31058793,87.249,87.227,1.31076655]
[1773262538727,1.31058793,87.262,87.227,1.31076655]
[1773262539622,1.31058793,87.259,87.228,11.46420874]
[1773262539822,1.31058793,87.259,87.229,1.31076655]
[1773262543729,1.30257677,87.257,87.23,12.76229528]
[1773262544232,1.30257677,87.257,87.231,1.29834939]
[1773262546521,1.30257677,87.255,87.233,1.29834939]
[1773262546923,1.30257677,87.255,87.228,12.76248716]
[1773262547122,1.30257677,87.249,87.228,11.46413777]
[1773262547323,1.30257677,87.249,87.222,1.29834939]
[1773262547840,1.30257677,87.249,87.224,1.29834939]
[1773262549824,1.35473351,87.247,87.225,12.82759758]
[1773262551330,1.35473351,87.247,87.226,1.36299455]
[1773262552833,11.46158078,87.248,87.228,1.36299455]
[1773262555051,11.46184352,87.246,87.228,1.36299455]
[1773262558435,2.94410217,87.24,87.228,1.36299455]
[1773262560251,1.35473351,87.238,87.211,1.36299455]
[1773262560452,11.46276321,87.239,87.211,1.36299455]
[1773262560453,11.46407731,87.229,87.211,1.36299455]
[1773262560755,2.92,87.239,87.211,1.36299455]
[1773262560756,11.46366986,87.233,87.211,1.36299455]
[1773262561938,11.46366986,87.233,87.213,1.36299455]
[1773262565444,2.94410217,87.23,87.213,1.36299455]
[1773262565845,11.46366986,87.233,87.21,0.2]
[1773262565846,4.29883568,87.22,87.21,0.2]
[1773262566363,1.35473351,87.229,87.21,1.56299455]
[1773262566556,2.94410217,87.23,87.21,1.56299455]